[Event "Live Chess"]
[Site "Chess.com"]
[Date "2024.06.01"]
[Round "-"]
[White "Crowded_House"]
[Black "Queensandpawns"]
[Result "0-1"]
[WhiteElo "1736"]
[BlackElo "2469"]
[TimeControl "300"]
[EndTime "9:48:04 PDT"]
[Termination "Queensandpawns won by checkmate"]

1. d4 {[%clk 0:04:57.2]} 1... e5 {[%clk 0:04:59.9]} 2. dxe5 {[%clk 0:04:53.3]}
2... Bc5 {[%clk 0:04:59.6]} 3. e3 {[%clk 0:04:48.3]} 3... d6 {[%clk 0:04:59.3]}
4. exd6 {[%clk 0:04:46.3]} 4... Bxd6 {[%clk 0:04:59.2]} 5. Nf3 {[%clk
0:04:41.7]} 5... Nf6 {[%clk 0:04:59.1]} 6. Nbd2 {[%clk 0:04:38.7]} 6... h5
{[%clk 0:04:59]} 7. Nc4 {[%clk 0:04:36.7]} 7... Ng4 {[%clk 0:04:55.5]} 8. Nxd6+
{[%clk 0:04:32.8]} 8... cxd6 {[%clk 0:04:55.4]} 9. h3 {[%clk 0:04:27.7]} 9...
Nf6 {[%clk 0:04:53.9]} 10. b3 {[%clk 0:04:24.4]} 10... Nc6 {[%clk 0:04:53.7]}
11. Bb2 {[%clk 0:04:23.4]} 11... Be6 {[%clk 0:04:53.6]} 12. Bb5 {[%clk 0:04:20]}
12... a6 {[%clk 0:04:52.1]} 13. Bxc6+ {[%clk 0:04:17.5]} 13... bxc6 {[%clk
0:04:52]} 14. O-O {[%clk 0:04:16]} 14... Ng4 {[%clk 0:04:49.5]} 15. Nd4 {[%clk
0:04:12.5]} 15... Bd7 {[%clk 0:04:45.8]} 16. Nf3 {[%clk 0:03:55.3]} 16... d5
{[%clk 0:04:40.9]} 17. Bxg7 {[%clk 0:03:52.6]} 17... Rg8 {[%clk 0:04:39.4]} 18.
Bc3 {[%clk 0:03:47.4]} 18... Nf6 {[%clk 0:04:37.7]} 19. Bxf6 {[%clk 0:03:44.5]}
19... Qxf6 {[%clk 0:04:36.3]} 20. Kh1 {[%clk 0:03:36.5]} 20... O-O-O {[%clk
0:04:29]} 21. Qd4 {[%clk 0:03:34.9]} 21... Qg6 {[%clk 0:04:24.9]} 22. Rg1 {[%clk
0:03:25.3]} 22... Qe4 {[%clk 0:04:03.9]} 23. Qa7 {[%clk 0:03:16.1]} 23... Bxh3
{[%clk 0:04:02.4]} 24. Qxa6+ {[%clk 0:03:05.6]} 24... Kd7 {[%clk 0:04:00]} 25.
Qb7+ {[%clk 0:03:04.1]} 25... Kd6 {[%clk 0:03:57.9]} 26. gxh3 {[%clk 0:02:58.2]}
26... Qxf3+ {[%clk 0:03:56.2]} 27. Kh2 {[%clk 0:02:55.6]} 27... Qxf2+ {[%clk
0:03:55]} 28. Kh1 {[%clk 0:02:52.5]} 28... Qf3+ {[%clk 0:03:51.9]} 29. Kh2
{[%clk 0:02:51.4]} 29... Qxe3 {[%clk 0:03:09.2]} 30. Qb4+ {[%clk 0:02:36.5]}
30... Kc7 {[%clk 0:03:06.7]} 31. Rxg8 {[%clk 0:02:34.3]} 31... Rxg8 {[%clk
0:03:04.9]} 32. Qa5+ {[%clk 0:02:31.4]} 32... Kd7 {[%clk 0:02:51]} 33. Re1
{[%clk 0:02:13]} 33... Qg3+ {[%clk 0:02:47.7]} 34. Kh1 {[%clk 0:02:10.9]} 34...
Qg2# {[%clk 0:02:47.6]} 0-1

[Event "Live Chess"]
[Site "Chess.com"]
[Date "2024.06.01"]
[Round "-"]
[White "Tushinskiy"]
[Black "PureDashingOctopus"]
[Result "0-1"]
[WhiteElo "2209"]
[BlackElo "2222"]
[TimeControl "300"]
[EndTime "9:48:07 PDT"]
[Termination "PureDashingOctopus won on time"]

1. d4 {[%clk 0:04:50.6]} 1... Nf6 {[%clk 0:04:58.7]} 2. c3 {[%clk 0:04:50.5]}
2... d5 {[%clk 0:04:54.8]} 3. Nf3 {[%clk 0:04:50.4]} 3... Bf5 {[%clk 0:04:52.2]}
4. Bf4 {[%clk 0:04:50.3]} 4... e6 {[%clk 0:04:50.7]} 5. Bg3 {[%clk 0:04:47.6]}
5... Bd6 {[%clk 0:04:47.4]} 6. Nbd2 {[%clk 0:04:47.5]} 6... O-O {[%clk
0:04:45.6]} 7. e3 {[%clk 0:04:43.1]} 7... Bg6 {[%clk 0:04:43.8]} 8. Be2 {[%clk
0:04:42.4]} 8... Qe7 {[%clk 0:04:41.9]} 9. b4 {[%clk 0:04:41.3]} 9... a5 {[%clk
0:04:40.3]} 10. a3 {[%clk 0:04:39.9]} 10... axb4 {[%clk 0:04:36.7]} 11. axb4
{[%clk 0:04:39.8]} 11... Nbd7 {[%clk 0:04:34.6]} 12. O-O {[%clk 0:04:38.3]}
12... Nb6 {[%clk 0:04:32.7]} 13. Qb3 {[%clk 0:04:34.7]} 13... Bxg3 {[%clk
0:04:22.5]} 14. hxg3 {[%clk 0:04:33.4]} 14... Rfc8 {[%clk 0:04:19.1]} 15. Ne5
{[%clk 0:04:30.1]} 15... Qd8 {[%clk 0:04:08.1]} 16. Nxg6 {[%clk 0:04:25.9]}
16... hxg6 {[%clk 0:04:05.9]} 17. Bf3 {[%clk 0:04:25.2]} 17... Rxa1 {[%clk
0:04:02.3]} 18. Rxa1 {[%clk 0:04:23.2]} 18... Ra8 {[%clk 0:04:01.8]} 19. Rd1
{[%clk 0:04:19.8]} 19... Ra7 {[%clk 0:03:41.4]} 20. c4 {[%clk 0:04:18.4]} 20...
Qa8 {[%clk 0:03:33.3]} 21. c5 {[%clk 0:04:15.4]} 21... Ra3 {[%clk 0:03:29.5]}
22. Qb1 {[%clk 0:04:07.3]} 22... Na4 {[%clk 0:03:22.8]} 23. Rc1 {[%clk
0:04:01.5]} 23... Nc3 {[%clk 0:03:15.3]} 24. Qb2 {[%clk 0:03:56]} 24... Nb5
{[%clk 0:03:14.3]} 25. Qb1 {[%clk 0:02:51.8]} 25... Qa4 {[%clk 0:02:31.2]} 26.
g4 {[%clk 0:02:23.9]} 26... g5 {[%clk 0:02:20.3]} 27. Nf1 {[%clk 0:01:51.9]}
27... Rb3 {[%clk 0:02:15.7]} 28. Qc2 {[%clk 0:01:45.8]} 28... Qxb4 {[%clk
0:02:13.7]} 29. Ra1 {[%clk 0:01:30.9]} 29... Na3 {[%clk 0:02:01.3]} 30. Qa2
{[%clk 0:01:27.3]} 30... Nc4 {[%clk 0:01:51.9]} 31. Qa8+ {[%clk 0:01:24.9]}
31... Kh7 {[%clk 0:01:49.9]} 32. Qf8 {[%clk 0:01:13]} 32... Rb1 {[%clk
0:01:22.3]} 33. Rxb1 {[%clk 0:00:57.7]} 33... Qxb1 {[%clk 0:01:20.6]} 34. Qxf7
{[%clk 0:00:56]} 34... Qe1 {[%clk 0:00:57.4]} 35. Qxe6 {[%clk 0:00:41.2]} 35...
Nd2 {[%clk 0:00:53.2]} 36. Qf5+ {[%clk 0:00:39.1]} 36... Kh6 {[%clk 0:00:51.5]}
37. Qd3 {[%clk 0:00:37.8]} 37... Nfe4 {[%clk 0:00:42.5]} 38. Bxe4 {[%clk
0:00:32.2]} 38... Nxe4 {[%clk 0:00:42.4]} 39. Qc2 {[%clk 0:00:28.1]} 39... g6
{[%clk 0:00:26.7]} 40. Qb2 {[%clk 0:00:19.2]} 40... c6 {[%clk 0:00:18.1]} 41.
Qc2 {[%clk 0:00:18]} 41... Qa1 {[%clk 0:00:15.2]} 42. Qe2 {[%clk 0:00:15.6]}
42... Qb1 {[%clk 0:00:13.5]} 43. Kh2 {[%clk 0:00:11.4]} 43... b6 {[%clk
0:00:11.9]} 44. Ng3 {[%clk 0:00:10.8]} 44... Nxg3 {[%clk 0:00:10.7]} 45. Kxg3
{[%clk 0:00:10.7]} 45... b5 {[%clk 0:00:10.2]} 46. Qf3 {[%clk 0:00:09.5]} 46...
b4 {[%clk 0:00:10.1]} 47. Qf8+ {[%clk 0:00:08.5]} 47... Kh7 {[%clk 0:00:10]} 48.
Qf7+ {[%clk 0:00:07.7]} 48... Kh6 {[%clk 0:00:09.3]} 49. Qe8 {[%clk 0:00:06.5]}
49... Kg7 {[%clk 0:00:07.3]} 50. Qd7+ {[%clk 0:00:02.9]} 50... Kf8 {[%clk
0:00:04.9]} 51. Qxc6 {[%clk 0:00:02.8]} 51... b3 {[%clk 0:00:03]} 52. Qd6+
{[%clk 0:00:02.1]} 52... Kf7 {[%clk 0:00:02.9]} 53. c6 {[%clk 0:00:01.6]} 53...
b2 {[%clk 0:00:02]} 54. Qd7+ {[%clk 0:00:00.6]} 54... Kf6 {[%clk 0:00:00.9]} 0-1

[Event "Live Chess"]
[Site "Chess.com"]
[Date "2024.06.01"]
[Round "-"]
[White "alicechristina"]
[Black "blunderabit"]
[Result "1-0"]
[WhiteElo "1781"]
[BlackElo "1819"]
[TimeControl "300"]
[EndTime "9:48:42 PDT"]
[Termination "alicechristina won on time"]

1. c4 {[%clk 0:04:56.2]} 1... e5 {[%clk 0:04:52.5]} 2. Nc3 {[%clk 0:04:54.7]}
2... Bb4 {[%clk 0:04:49.4]} 3. g3 {[%clk 0:04:53.1]} 3... Nc6 {[%clk 0:04:41.6]}
4. Bg2 {[%clk 0:04:49.8]} 4... Bxc3 {[%clk 0:04:39.6]} 5. bxc3 {[%clk
0:04:47.7]} 5... b6 {[%clk 0:04:32.1]} 6. e4 {[%clk 0:04:43.3]} 6... Nge7 {[%clk
0:04:26.2]} 7. Ne2 {[%clk 0:04:42]} 7... d6 {[%clk 0:04:22.1]} 8. O-O {[%clk
0:04:40.9]} 8... Be6 {[%clk 0:04:19.5]} 9. d3 {[%clk 0:04:37]} 9... Qd7 {[%clk
0:04:18]} 10. f4 {[%clk 0:04:35.9]} 10... Bg4 {[%clk 0:03:55.7]} 11. f5 {[%clk
0:04:33.5]} 11... Bxe2 {[%clk 0:03:50.3]} 12. Qxe2 {[%clk 0:04:31.6]} 12... f6
{[%clk 0:03:45.4]} 13. Qh5+ {[%clk 0:04:27.2]} 13... Kd8 {[%clk 0:03:40.8]} 14.
d4 {[%clk 0:04:23.3]} 14... Qe8 {[%clk 0:03:38.3]} 15. Qf3 {[%clk 0:04:20.2]}
15... Rf8 {[%clk 0:03:22.7]} 16. c5 {[%clk 0:04:18.1]} 16... dxc5 {[%clk
0:03:10.4]} 17. dxc5 {[%clk 0:04:16.8]} 17... Kc8 {[%clk 0:03:00.5]} 18. Qd3
{[%clk 0:04:05.8]} 18... Kb7 {[%clk 0:02:51.2]} 19. Be3 {[%clk 0:03:54.1]} 19...
Rd8 {[%clk 0:02:41]} 20. Qb5 {[%clk 0:03:50]} 20... Na5 {[%clk 0:02:24.1]} 21.
Rab1 {[%clk 0:03:38.6]} 21... Qxb5 {[%clk 0:02:20.3]} 22. Rxb5 {[%clk 0:03:37]}
22... Nc4 {[%clk 0:02:04.3]} 23. Bf2 {[%clk 0:03:34.8]} 23... Rd2 {[%clk
0:02:01.2]} 24. Rb4 {[%clk 0:03:20.6]} 24... Nb2 {[%clk 0:01:49]} 25. Be1 {[%clk
0:02:52.1]} 25... Rc2 {[%clk 0:01:41.2]} 26. cxb6 {[%clk 0:02:44.9]} 26... axb6
{[%clk 0:01:34.8]} 27. Bf3 {[%clk 0:02:26.3]} 27... Nd3 {[%clk 0:01:32.4]} 28.
Rb3 {[%clk 0:02:22.1]} 28... Rxa2 {[%clk 0:01:22.1]} 29. c4 {[%clk 0:02:19.9]}
29... Rd8 {[%clk 0:01:07.5]} 30. Bb4 {[%clk 0:01:59.4]} 30... Nc6 {[%clk
0:00:59.7]} 31. Bc3 {[%clk 0:01:53.1]} 31... Nc5 {[%clk 0:00:54.2]} 32. Rb2
{[%clk 0:01:49.3]} 32... Rxb2 {[%clk 0:00:41]} 33. Bxb2 {[%clk 0:01:47.6]} 33...
Rd2 {[%clk 0:00:38.9]} 34. Ba3 {[%clk 0:01:42.4]} 34... Nd3 {[%clk 0:00:28.8]}
35. Bf8 {[%clk 0:01:39.9]} 35... g6 {[%clk 0:00:18.1]} 36. Bg7 {[%clk
0:01:33.5]} 36... Nd4 {[%clk 0:00:08.5]} 37. Bxf6 {[%clk 0:01:29.9]} 37... gxf5
{[%clk 0:00:05.2]} 38. exf5+ {[%clk 0:01:27.8]} 38... Nxf3+ {[%clk 0:00:04.1]}
39. Rxf3 {[%clk 0:01:26.6]} 39... e4 {[%clk 0:00:03.1]} 40. Re3 {[%clk
0:01:22.3]} 1-0

[Event "Live Chess"]
[Site "Chess.com"]
[Date "2024.06.01"]
[Round "-"]
[White "KeithArkell"]
[Black "mrsmarple1968"]
[Result "1-0"]
[WhiteElo "2515"]
[BlackElo "1787"]
[TimeControl "300"]
[EndTime "9:48:48 PDT"]
[Termination "KeithArkell won by resignation"]

1. d4 {[%clk 0:04:57.6]} 1... d5 {[%clk 0:04:57.4]} 2. Nf3 {[%clk 0:04:56.7]}
2... Nf6 {[%clk 0:04:55.1]} 3. c4 {[%clk 0:04:56.1]} 3... e6 {[%clk 0:04:53.3]}
4. cxd5 {[%clk 0:04:55.3]} 4... exd5 {[%clk 0:04:51.5]} 5. Nc3 {[%clk 0:04:55]}
5... c6 {[%clk 0:04:49.8]} 6. Qc2 {[%clk 0:04:53.9]} 6... Be7 {[%clk 0:04:43.3]}
7. Bg5 {[%clk 0:04:52.3]} 7... Nbd7 {[%clk 0:04:39.3]} 8. e3 {[%clk 0:04:51.7]}
8... O-O {[%clk 0:04:35.6]} 9. Bd3 {[%clk 0:04:50.8]} 9... Re8 {[%clk
0:04:33.7]} 10. O-O {[%clk 0:04:49.5]} 10... Nf8 {[%clk 0:04:26.7]} 11. Bxf6
{[%clk 0:04:48.7]} 11... Bxf6 {[%clk 0:04:24.6]} 12. b4 {[%clk 0:04:48.4]} 12...
a6 {[%clk 0:04:14]} 13. a4 {[%clk 0:04:46.9]} 13... Bg4 {[%clk 0:04:08.3]} 14.
Nd2 {[%clk 0:04:45.3]} 14... Rc8 {[%clk 0:04:01.7]} 15. Bf5 {[%clk 0:04:44]}
15... Bxf5 {[%clk 0:03:58.6]} 16. Qxf5 {[%clk 0:04:43]} 16... g6 {[%clk
0:03:54.9]} 17. Qf3 {[%clk 0:04:38]} 17... Bg7 {[%clk 0:03:46.7]} 18. Rab1
{[%clk 0:04:36.7]} 18... b6 {[%clk 0:03:40.9]} 19. Rfc1 {[%clk 0:04:32.2]} 19...
Qd6 {[%clk 0:03:33.7]} 20. b5 {[%clk 0:04:30.7]} 20... axb5 {[%clk 0:03:31.9]}
21. axb5 {[%clk 0:04:29.7]} 21... Red8 {[%clk 0:03:22.1]} 22. bxc6 {[%clk
0:04:13.9]} 22... Rxc6 {[%clk 0:03:18.8]} 23. Ne2 {[%clk 0:04:04.4]} 23... Rdc8
{[%clk 0:03:06.9]} 24. Rxc6 {[%clk 0:04:03.4]} 24... Rxc6 {[%clk 0:03:00.9]} 25.
Nf4 {[%clk 0:04:01.4]} 25... Rc2 {[%clk 0:02:51.3]} 26. Nf1 {[%clk 0:04:00.2]}
26... Nd7 {[%clk 0:02:27.2]} 27. Qxd5 {[%clk 0:03:59]} 27... Qxd5 {[%clk
0:02:20.6]} 28. Nxd5 {[%clk 0:03:57.8]} 28... Rc6 {[%clk 0:02:18.4]} 29. Ne7+
{[%clk 0:03:56]} 1-0

[Event "Live Chess"]
[Site "Chess.com"]
[Date "2024.06.01"]
[Round "-"]
[White "f4nomore"]
[Black "vincents82"]
[Result "0-1"]
[WhiteElo "1196"]
[BlackElo "2137"]
[TimeControl "300"]
[EndTime "9:48:52 PDT"]
[Termination "vincents82 won by resignation"]

1. d4 {[%clk 0:04:56.4]} 1... d5 {[%clk 0:04:56]} 2. Nc3 {[%clk 0:04:54.4]} 2...
Nf6 {[%clk 0:04:54.8]} 3. Bg5 {[%clk 0:04:52.3]} 3... c6 {[%clk 0:04:48.3]} 4.
Bxf6 {[%clk 0:04:50.9]} 4... exf6 {[%clk 0:04:47.5]} 5. Nf3 {[%clk 0:04:49.9]}
5... g6 {[%clk 0:04:46.9]} 6. e3 {[%clk 0:04:49.1]} 6... Bg7 {[%clk 0:04:45.7]}
7. Be2 {[%clk 0:04:48.8]} 7... O-O {[%clk 0:04:44.9]} 8. O-O {[%clk 0:04:46.7]}
8... Nd7 {[%clk 0:04:43.9]} 9. h3 {[%clk 0:04:45.8]} 9... f5 {[%clk 0:04:43.2]}
10. a3 {[%clk 0:04:42.6]} 10... Nf6 {[%clk 0:04:42.6]} 11. Na2 {[%clk
0:04:34.7]} 11... Ne4 {[%clk 0:04:41.2]} 12. c4 {[%clk 0:04:29.8]} 12... Be6
{[%clk 0:04:40.1]} 13. c5 {[%clk 0:04:27.3]} 13... a5 {[%clk 0:04:22.2]} 14. Nc3
{[%clk 0:04:25.2]} 14... Qd7 {[%clk 0:04:19.8]} 15. Nxe4 {[%clk 0:04:22.6]}
15... fxe4 {[%clk 0:04:18.9]} 16. Nd2 {[%clk 0:04:15.3]} 16... f5 {[%clk
0:04:16.7]} 17. f3 {[%clk 0:04:12]} 17... Bh6 {[%clk 0:04:14]} 18. f4 {[%clk
0:04:08]} 18... g5 {[%clk 0:04:11.9]} 19. Qe1 {[%clk 0:03:56.6]} 19... Kh8
{[%clk 0:04:06]} 20. Qg3 {[%clk 0:03:46.9]} 20... Rg8 {[%clk 0:04:02.3]} 21.
fxg5 {[%clk 0:03:28.9]} 21... Rxg5 {[%clk 0:04:00.7]} 22. Qe5+ {[%clk
0:03:26.8]} 22... Bg7 {[%clk 0:03:59.5]} 23. Qd6 {[%clk 0:03:23.5]} 23... Qf7
{[%clk 0:03:35]} 24. Rf2 {[%clk 0:03:21.3]} 24... Rg8 {[%clk 0:03:31.9]} 25. Qh2
{[%clk 0:03:09.4]} 25... Qg6 {[%clk 0:03:28.6]} 26. Bf1 {[%clk 0:03:04.8]} 26...
Rg3 {[%clk 0:03:22.2]} 27. b4 {[%clk 0:02:56.3]} 27... Bh6 {[%clk 0:03:19.6]}
28. Re2 {[%clk 0:02:51.3]} 28... Bxe3+ {[%clk 0:03:16.6]} 29. Kh1 {[%clk
0:02:45.7]} 29... f4 {[%clk 0:03:13]} 30. bxa5 {[%clk 0:02:40.4]} 30... Bxh3
{[%clk 0:03:09.7]} 31. Rb1 {[%clk 0:02:15.4]} 31... Bc8 {[%clk 0:03:02.1]} 32.
a6 {[%clk 0:02:04.4]} 32... bxa6 {[%clk 0:02:48.4]} 33. Rb6 {[%clk 0:01:53.3]}
33... f3 {[%clk 0:02:46.5]} 34. gxf3 {[%clk 0:01:43.7]} 34... Rg1+ {[%clk
0:02:42.6]} 0-1

[Event "Live Chess"]
[Site "Chess.com"]
[Date "2024.06.01"]
[Round "-"]
[White "dl_chess"]
[Black "Ferrarifan27"]
[Result "0-1"]
[WhiteElo "1161"]
[BlackElo "2075"]
[TimeControl "300"]
[EndTime "9:48:55 PDT"]
[Termination "Ferrarifan27 won by resignation"]

1. e4 {[%clk 0:04:55.2]} 1... e5 {[%clk 0:04:56.3]} 2. Bc4 {[%clk 0:04:53.3]}
2... Nc6 {[%clk 0:04:55.2]} 3. Nf3 {[%clk 0:04:51.1]} 3... Bc5 {[%clk
0:04:54.2]} 4. d3 {[%clk 0:04:47.4]} 4... Nf6 {[%clk 0:04:51.7]} 5. Nc3 {[%clk
0:04:45.8]} 5... a6 {[%clk 0:04:50.4]} 6. Na4 {[%clk 0:04:43.5]} 6... Ba7 {[%clk
0:04:48.2]} 7. O-O {[%clk 0:04:41.2]} 7... b5 {[%clk 0:04:46.9]} 8. Bxf7+ {[%clk
0:04:36.4]} 8... Kxf7 {[%clk 0:04:45.4]} 9. Ng5+ {[%clk 0:04:34.9]} 9... Ke8
{[%clk 0:04:44.3]} 10. Nc3 {[%clk 0:04:22.1]} 10... h6 {[%clk 0:04:42.6]} 11.
Nf3 {[%clk 0:04:17.2]} 11... Rf8 {[%clk 0:04:40.3]} 12. Re1 {[%clk 0:04:08]}
12... d6 {[%clk 0:04:39.2]} 13. Nd5 {[%clk 0:04:06.8]} 13... Nxd5 {[%clk
0:04:37.4]} 14. exd5 {[%clk 0:04:05.8]} 14... Ne7 {[%clk 0:04:33.1]} 15. d4
{[%clk 0:04:04.8]} 15... Bg4 {[%clk 0:04:22.1]} 16. dxe5 {[%clk 0:03:57.4]}
16... Bxf3 {[%clk 0:04:21]} 17. gxf3 {[%clk 0:03:54.9]} 17... dxe5 {[%clk
0:04:19]} 18. Rxe5 {[%clk 0:03:52.6]} 18... Qd6 {[%clk 0:04:17.5]} 19. Qe2
{[%clk 0:03:50]} 19... Kd7 {[%clk 0:04:12.6]} 20. Bf4 {[%clk 0:03:48.4]} 20...
Rxf4 {[%clk 0:04:10.1]} 21. Re1 {[%clk 0:03:36.4]} 21... Re8 {[%clk 0:03:49.5]}
22. Qd2 {[%clk 0:03:32.2]} 22... Rxf3 {[%clk 0:03:44.1]} 23. Re6 {[%clk
0:03:24]} 23... Qf4 {[%clk 0:03:33.6]} 24. Qa5 {[%clk 0:02:51.8]} 24... Bxf2+
{[%clk 0:03:22.7]} 25. Kh1 {[%clk 0:02:46.6]} 25... Bxe1 {[%clk 0:03:21.3]} 26.
Rxe7+ {[%clk 0:02:44.8]} 26... Rxe7 {[%clk 0:03:19.6]} 0-1

[Event "Live Chess"]
[Site "Chess.com"]
[Date "2024.06.01"]
[Round "-"]
[White "TedUdale"]
[Black "degringolade64"]
[Result "0-1"]
[WhiteElo "2147"]
[BlackElo "2089"]
[TimeControl "300"]
[EndTime "9:48:56 PDT"]
[Termination "degringolade64 won by resignation"]

1. e4 {[%clk 0:04:57.9]} 1... e5 {[%clk 0:04:57.8]} 2. Nf3 {[%clk 0:04:57]} 2...
Nc6 {[%clk 0:04:57.1]} 3. Bc4 {[%clk 0:04:55.7]} 3... Nf6 {[%clk 0:04:55.9]} 4.
d3 {[%clk 0:04:54.4]} 4... h6 {[%clk 0:04:53.4]} 5. Nc3 {[%clk 0:04:53.2]} 5...
d6 {[%clk 0:04:49.6]} 6. h3 {[%clk 0:04:51.9]} 6... Na5 {[%clk 0:04:47.8]} 7.
Bb3 {[%clk 0:04:50.9]} 7... c6 {[%clk 0:04:45.8]} 8. O-O {[%clk 0:04:49.1]} 8...
Be7 {[%clk 0:04:44.1]} 9. Nh2 {[%clk 0:04:48.5]} 9... O-O {[%clk 0:04:29.7]} 10.
f4 {[%clk 0:04:46.9]} 10... Nxb3 {[%clk 0:04:20.6]} 11. axb3 {[%clk 0:04:44.4]}
11... exf4 {[%clk 0:04:15.6]} 12. Bxf4 {[%clk 0:04:43.2]} 12... Be6 {[%clk
0:04:02.7]} 13. Qe1 {[%clk 0:04:34.9]} 13... a6 {[%clk 0:03:48.2]} 14. Qf2
{[%clk 0:04:27.1]} 14... Qd7 {[%clk 0:03:40.3]} 15. Rae1 {[%clk 0:04:24.8]}
15... Rae8 {[%clk 0:03:38.2]} 16. Kh1 {[%clk 0:04:23.7]} 16... Nh5 {[%clk
0:03:20.5]} 17. Bc1 {[%clk 0:04:20.9]} 17... f5 {[%clk 0:03:11.5]} 18. Qe2
{[%clk 0:04:18.1]} 18... Ng3+ {[%clk 0:03:08.7]} 19. Kg1 {[%clk 0:04:16.6]}
19... Nxe2+ {[%clk 0:03:08.6]} 20. Rxe2 {[%clk 0:04:16.2]} 20... fxe4 {[%clk
0:03:06.5]} 21. Nxe4 {[%clk 0:04:15.3]} 21... Rxf1+ {[%clk 0:03:04.5]} 22. Nxf1
{[%clk 0:04:14.9]} 22... Rf8 {[%clk 0:02:59.8]} 23. Nh2 {[%clk 0:04:09.6]} 23...
d5 {[%clk 0:02:55.6]} 24. Nd2 {[%clk 0:04:07]} 24... Bc5+ {[%clk 0:02:52.3]} 25.
Kh1 {[%clk 0:04:05.1]} 25... Bxh3 {[%clk 0:02:47.7]} 26. gxh3 {[%clk 0:04:03.6]}
26... Qxh3 {[%clk 0:02:46.5]} 27. Rg2 {[%clk 0:03:54.2]} 27... Rf2 {[%clk
0:02:40.5]} 28. Rxf2 {[%clk 0:03:48]} 28... Bxf2 {[%clk 0:02:40.4]} 29. Nf3
{[%clk 0:03:46.3]} 29... Bg3 {[%clk 0:02:36.6]} 30. Be3 {[%clk 0:03:42.2]} 30...
Bxh2 {[%clk 0:02:34.4]} 31. Nxh2 {[%clk 0:03:42.1]} 31... Qxe3 {[%clk
0:02:33.3]} 0-1

[Event "Live Chess"]
[Site "Chess.com"]
[Date "2024.06.01"]
[Round "-"]
[White "MellowAesthetic"]
[Black "Mangoalo"]
[Result "1-0"]
[WhiteElo "2067"]
[BlackElo "995"]
[TimeControl "300"]
[EndTime "9:49:00 PDT"]
[Termination "MellowAesthetic won by resignation"]

1. e4 {[%clk 0:04:59]} 1... Nc6 {[%clk 0:04:59.9]} 2. Nf3 {[%clk 0:04:57.7]}
2... e5 {[%clk 0:04:59.8]} 3. Bc4 {[%clk 0:04:55.6]} 3... Bc5 {[%clk 0:04:59.4]}
4. c3 {[%clk 0:04:54.7]} 4... Nf6 {[%clk 0:04:59]} 5. d3 {[%clk 0:04:53.3]} 5...
O-O {[%clk 0:04:57.1]} 6. O-O {[%clk 0:04:52.4]} 6... h6 {[%clk 0:04:55.8]} 7.
Nbd2 {[%clk 0:04:49.1]} 7... d6 {[%clk 0:04:54.7]} 8. a4 {[%clk 0:04:46.1]} 8...
a6 {[%clk 0:04:52.2]} 9. h3 {[%clk 0:04:43.9]} 9... Qe7 {[%clk 0:04:47.7]} 10.
Re1 {[%clk 0:04:42.8]} 10... Be6 {[%clk 0:04:46.9]} 11. b4 {[%clk 0:04:36.7]}
11... Nxb4 {[%clk 0:04:41.6]} 12. cxb4 {[%clk 0:04:35]} 12... Bxb4 {[%clk
0:04:40.7]} 13. Qb3 {[%clk 0:04:21.7]} 13... Bxc4 {[%clk 0:04:36.2]} 14. Qxc4
{[%clk 0:04:16]} 14... Bxd2 {[%clk 0:04:34.7]} 15. Bxd2 {[%clk 0:04:14.2]} 15...
c5 {[%clk 0:04:32.3]} 16. a5 {[%clk 0:04:06.2]} 16... Nd7 {[%clk 0:04:25.6]} 17.
Rab1 {[%clk 0:04:03.9]} 17... Rab8 {[%clk 0:04:24]} 18. Rb2 {[%clk 0:03:59]}
18... b5 {[%clk 0:04:18.8]} 19. axb6 {[%clk 0:03:57.8]} 19... Nxb6 {[%clk
0:04:15.4]} 20. Qxa6 {[%clk 0:03:56.8]} 20... Qb7 {[%clk 0:04:10.9]} 21. Qxb7
{[%clk 0:03:54]} 21... Rxb7 {[%clk 0:04:10.8]} 22. Reb1 {[%clk 0:03:53]} 22...
Rfb8 {[%clk 0:04:10.6]} 23. Ba5 {[%clk 0:03:52.1]} 1-0

[Event "Live Chess"]
[Site "Chess.com"]
[Date "2024.06.01"]
[Round "-"]
[White "viktorskliarov"]
[Black "Demyan7777"]
[Result "1-0"]
[WhiteElo "2638"]
[BlackElo "1674"]
[TimeControl "300"]
[EndTime "9:49:12 PDT"]
[Termination "viktorskliarov won by checkmate"]

1. e4 {[%clk 0:04:53.4]} 1... c5 {[%clk 0:04:58.8]} 2. Nf3 {[%clk 0:04:51.9]}
2... d6 {[%clk 0:04:58]} 3. d4 {[%clk 0:04:50.9]} 3... cxd4 {[%clk 0:04:57.3]}
4. Qxd4 {[%clk 0:04:50.8]} 4... Nf6 {[%clk 0:04:56.5]} 5. Nc3 {[%clk 0:04:48.9]}
5... Nc6 {[%clk 0:04:55.9]} 6. Bb5 {[%clk 0:04:44.2]} 6... Bd7 {[%clk
0:04:54.9]} 7. Bxc6 {[%clk 0:04:41.7]} 7... Bxc6 {[%clk 0:04:54.2]} 8. Bg5
{[%clk 0:04:41.3]} 8... Qc7 {[%clk 0:04:46]} 9. Bxf6 {[%clk 0:04:36.6]} 9...
gxf6 {[%clk 0:04:44.9]} 10. O-O-O {[%clk 0:04:30.8]} 10... Rc8 {[%clk 0:04:39]}
11. Kb1 {[%clk 0:04:19.5]} 11... e5 {[%clk 0:04:35.2]} 12. Qd3 {[%clk 0:03:55]}
12... Be7 {[%clk 0:04:32.5]} 13. Nh4 {[%clk 0:03:44.9]} 13... Rd8 {[%clk
0:04:26.2]} 14. Nf5 {[%clk 0:03:42.1]} 14... a6 {[%clk 0:04:23.4]} 15. Nd5
{[%clk 0:03:26.3]} 15... Bxd5 {[%clk 0:04:21.9]} 16. Qxd5 {[%clk 0:03:21.3]}
16... Rg8 {[%clk 0:04:20]} 17. g3 {[%clk 0:03:14.7]} 17... Qc6 {[%clk
0:04:18.7]} 18. f3 {[%clk 0:03:02.3]} 18... Qxd5 {[%clk 0:03:49.6]} 19. Rxd5
{[%clk 0:03:01.3]} 19... Kd7 {[%clk 0:03:48.2]} 20. Rhd1 {[%clk 0:02:58.2]}
20... Ke6 {[%clk 0:03:47.3]} 21. c4 {[%clk 0:02:54.6]} 21... b6 {[%clk 0:03:31]}
22. b4 {[%clk 0:02:39.5]} 22... h5 {[%clk 0:03:25.3]} 23. h4 {[%clk 0:02:30.4]}
23... Rh8 {[%clk 0:02:25.2]} 24. Kb2 {[%clk 0:02:23]} 24... Rhg8 {[%clk
0:02:23.7]} 25. Kb3 {[%clk 0:02:20.7]} 25... Rh8 {[%clk 0:02:14.1]} 26. a4
{[%clk 0:02:14.3]} 26... Rhg8 {[%clk 0:02:12.6]} 27. Ka3 {[%clk 0:02:05.4]}
27... Rh8 {[%clk 0:02:09.4]} 28. c5 {[%clk 0:01:56.4]} 28... bxc5 {[%clk
0:02:07.3]} 29. bxc5 {[%clk 0:01:48.4]} 29... Rhg8 {[%clk 0:01:44.5]} 30. c6
{[%clk 0:01:29.1]} 30... Bf8 {[%clk 0:01:34.7]} 31. c7 {[%clk 0:01:19.6]} 31...
Rxg3 {[%clk 0:01:22.9]} 32. cxd8=Q {[%clk 0:01:16.9]} 32... Rxf3+ {[%clk
0:01:21.5]} 33. Kb4 {[%clk 0:01:15.3]} 33... Rb3+ {[%clk 0:01:20.1]} 34. Kxb3
{[%clk 0:01:13.8]} 34... a5 {[%clk 0:01:19.4]} 35. Qe8+ {[%clk 0:01:10.6]} 35...
Be7 {[%clk 0:01:17.6]} 36. Rxd6# {[%clk 0:01:08]} 1-0